bitfinex/quotes_SOLUSD_20250414
["timestamp","ask_amount","ask_price","bid_price","bid_amount"]
[1744660880586,26.05986508,131.12,131.07,32.32016508]
[1744660880898,26.05986508,131.11,131.07,32.32016508]
[1744660881084,37.11986508,131.12,131.07,32.32016508]
[1744660881384,26.05986508,131.1,131.06,1.6217]
[1744660882171,19.07613357,131.11,131.06,1.6217]
[1744660882369,26.05986508,131.1,131.06,1.6217]
[1744660882571,26.05986508,131.07,131.02,1.5209]
[1744660882788,26.05986508,131.06,131.02,1.5209]
[1744660883175,16.29932968,131.06,131.02,17.82022968]
[1744660883598,16.29932968,131.05,131.01,6.2776]
[1744660883801,16.29932968,131.04,131.01,6.2776]
[1744660883971,16.29932968,131.05,131.01,6.2776]
[1744660884663,7.6307,131.05,131.01,22.60692968]
[1744660885170,33.71285327,131.05,131.01,32.38975327]
[1744660885494,33.71285327,131.05,131.01,6.3076]
[1744660885693,33.71285327,131.05,131.01,0.03]
[1744660885694,26.08215327,131.03,131.01,0.03]
[1744660885989,26.08215327,131.02,131.01,0.03]
[1744660886792,33.71455327,131.02,131.01,0.03]
[1744660887176,52.79068684,131.02,131.01,0.03]
[1744660887378,63.99284841,131.02,131.01,0.03]
[1744660887582,19.07613357,131.01,130.94,26.11215327]
[1744660887795,26.08215327,130.99,130.94,26.11215327]
[1744660888165,26.08215327,130.97,130.94,0.03]
[1744660888573,44.8739637,130.95,130.94,0.03]
[1744660888776,52.93694841,130.95,130.94,0.03]
[1744660888997,52.93694841,130.95,130.93,0.03]
[1744660888998,19.07613357,130.94,130.93,0.03]
[1744660889193,152.04044011,130.94,130.93,0.03]
[1744660889365,100.01829514,130.93,130.91,0.03]
[1744660889571,45.07613357,130.89,130.86,30.03]
[1744660889773,71.15828684,130.89,130.86,30.03]
[1744660889966,71.15828684,130.89,130.86,0.03]
[1744660890904,78.94044841,130.89,130.86,0.03]
[1744660892183,82.73560612,130.89,130.86,0.03]
[1744660892388,78.94044841,130.89,130.86,0.03]
[1744660893116,52.71613357,130.89,130.86,0.03]
[1744660893411,78.79828684,130.89,130.86,0.03]
[1744660893702,78.94044841,130.89,130.86,0.03]
[1744660894480,78.94044841,130.89,130.88,0.0001]
[1744660894800,105.02260168,130.89,130.88,0.0001]
[1744660895099,19.21829514,130.88,130.86,0.03]
[1744660895302,82.44260168,130.87,130.86,0.03]
[1744660895802,56.36044841,130.87,130.86,0.03]
[1744660896605,82.44260168,130.87,130.86,0.03]
[1744660896986,90.08370168,130.87,130.86,0.03]
[1744660897610,64.00154841,130.87,130.86,0.03]
[1744660897808,63.71722527,130.87,130.86,0.03]
[1744660898002,56.07612527,130.87,130.86,0.03]
[1744660898306,37.14215327,130.87,130.86,0.03]
[1744660898915,26.08215327,130.89,130.86,0.03]
[1744660899081,80.8,130.9,130.88,26.08215327]
[1744660899809,26.08215327,130.92,130.88,26.08215327]
[1744660900014,33.72035327,130.92,130.88,26.08215327]
[1744660900509,26.08215327,130.91,130.86,6.601]
[1744660900711,11.08,130.9,130.86,6.601]
[1744660900885,37.16215327,130.9,130.86,6.601]
[1744660901401,11.08,130.9,130.86,32.68315327]
[1744660902016,11.08,130.9,130.86,40.32465327]
[1744660902379,11.08,130.9,130.87,26.08215327]
[1744660902890,37.16215327,130.9,130.86,6.601]
[1744660903194,44.80155327,130.9,130.86,6.601]
[1744660903398,37.16215327,130.9,130.86,6.601]
[1744660903896,44.80165327,130.9,130.86,6.601]
[1744660904215,26.08215327,130.89,130.86,6.601]
[1744660904586,26.08215327,130.88,130.86,0.03]
[1744660904781,26.08215327,130.89,130.86,0.03]
[1744660905113,11.08,130.9,130.86,33.75375327]
[1744660905317,11.08,130.9,130.87,26.08215327]
[1744660905686,11.08,130.9,130.88,26.08215327]
[1744660906004,106.88215327,130.92,130.88,26.08215327]
[1744660906183,26.08215327,130.92,130.88,26.08215327]
[1744660906378,26.08215327,130.91,130.86,26.11215327]
[1744660906602,26.08215327,130.9,130.86,0.03]
[1744660906819,26.08215327,130.92,130.87,26.08215327]
[1744660907196,33.72035327,130.92,130.87,33.72285327]
[1744660907897,33.72035327,130.92,130.87,26.08215327]
[1744660908220,26.08215327,130.91,130.87,26.08215327]
[1744660908521,26.08215327,130.9,130.86,0.03]
[1744660908695,26.08215327,130.9,130.86,33.75375327]
[1744660909522,33.72165327,130.9,130.86,33.75375327]
[1744660909920,33.72165327,130.9,130.86,26.11215327]
[1744660910103,33.72165327,130.9,130.86,0.03]
[1744660910807,26.08215327,130.89,130.86,0.03]
[1744660910987,26.08215327,130.87,130.86,0.03]
[1744660911511,33.72325327,130.87,130.86,0.03]
[1744660911726,52.79938684,130.87,130.86,0.03]
[1744660911899,52.94154841,130.87,130.86,0.03]
[1744660912303,79.02370168,130.87,130.86,0.03]
[1744660912623,79.02370168,130.87,130.86,0.0001]
[1744660912994,44.79181043,130.85,130.84,0.03]
[1744660913223,45.15828684,130.85,130.84,0.03]
[1744660913608,19.07613357,130.84,130.83,0.03]
[1744660913802,137.10044841,130.84,130.83,0.03]
[1744660915698,125.52505327,130.84,130.83,0.03]
[1744660916217,144.74334841,130.84,130.83,0.03]
[1744660916526,144.60118684,130.84,130.83,0.03]
[1744660917631,91.8,130.84,130.83,0.03]
[1744660917796,99.4429,130.84,130.83,0.03]
[1744660918001,125.52505327,130.84,130.83,0.03]
[1744660921229,144.74334841,130.84,130.83,0.03]
[1744660921610,19.07613357,130.83,130.82,0.0001]
[1744660921921,45.15828684,130.83,130.82,0.0001]
[1744660922129,26.72013357,130.82,130.81,0.0001]
[1744660922335,159.68444011,130.82,130.81,0.0001]
[1744660922635,133.60228684,130.82,130.81,0.0001]
[1744660924031,133.74444841,130.82,130.81,0.0001]
[1744660924514,52.94444841,130.82,130.81,0.0001]
[1744660928835,52.66012527,130.82,130.81,0.0001]
[1744660929025,78.74227854,130.82,130.81,0.0001]
[1744660929227,79.02660168,130.82,130.81,0.0001]
[1744660929723,52.94444841,130.82,130.81,0.0001]
[1744660930939,101.92660168,130.82,130.81,0.0001]
[1744660931139,71.30044841,130.79,130.78,0.0001]
[1744660931452,52.86639514,130.75,130.73,0.03]
[1744660931732,78.94854841,130.75,130.73,0.03]
[1744660933317,105.03070168,130.75,130.73,0.03]
[1744660933727,78.94854841,130.75,130.73,0.03]
[1744660935028,105.03070168,130.75,130.73,0.03]
[1744660935544,78.94854841,130.75,130.73,0.03]
[1744660935747,78.80638684,130.75,130.73,0.03]
[1744660935919,105.03070168,130.75,130.73,0.03]
[1744660936318,78.94854841,130.75,130.73,0.03]
[1744660936529,78.80638684,130.75,130.73,0.03]
[1744660937245,88.4478,130.76,130.73,0.03]
[1744660937429,125.52985327,130.76,130.73,0.03]
[1744660937848,11.0,130.76,130.75,6.1797]
[1744660943437,11.0,130.76,130.75,32.26185327]
[1744660943932,11.0,130.76,130.75,6.1797]
[1744660944946,11.0,130.76,130.75,33.77245327]
[1744660945245,11.0,130.76,130.75,7.6903]
[1744660945440,18.6475,130.76,130.75,7.6903]
[1744660945750,11.0,130.76,130.75,7.6903]
[1744660948251,35.01477908,130.76,130.74,0.03]
[1744660948554,16.36727908,130.75,130.74,0.03]
[1744660948752,35.44341265,130.75,130.74,0.03]
[1744660949155,52.93668883,130.75,130.74,0.03]
[1744660949452,53.0788504,130.75,130.74,0.03]
[1744660949648,52.93668883,130.75,130.74,0.03]
[1744660949956,79.29130566,130.75,130.74,0.0001]
[1744660950256,19.21829514,130.74,130.72,0.03]
[1744660950557,45.21829514,130.7,130.69,0.03]
[1744660950760,82.4307504,130.7,130.69,0.03]
[1744660951466,89.93968883,130.7,130.69,0.03]
[1744660954754,89.93968883,130.7,130.61,14.9837]
[1744660954755,0.14216157,130.69,130.61,14.9837]
[1744660954951,26.21245526,130.65,130.61,14.9837]
[1744660956051,26.21245526,130.65,130.63,0.03]
[1744660956052,33.86655526,130.65,130.63,0.03]
[1744660956460,26.21245526,130.65,130.63,0.03]
[1744660956658,33.86615526,130.66,130.63,0.03]
[1744660957154,33.86545526,130.67,130.63,0.03]
[1744660957463,26.21245526,130.68,130.64,26.21245526]
[1744660957664,7.652,130.69,130.64,26.21245526]
[1744660957871,26.21245526,130.68,130.64,26.21245526]
[1744660958554,26.21245526,130.68,130.64,33.86695526]
[1744660958759,26.21245526,130.68,130.64,7.6545]
[1744660959575,33.86445526,130.69,130.64,33.86695526]
[1744660959868,37.0,130.7,130.66,26.21245526]
[1744660960265,63.21245526,130.7,130.66,26.21245526]
[1744660960748,26.21245526,130.68,130.63,7.6852]
[1744660960949,26.21245526,130.68,130.64,26.21245526]
[1744660961450,26.21245526,130.67,130.63,7.6852]
[1744660961652,44.6511,130.7,130.65,26.21245526]
[1744660961853,11.0,130.7,130.66,26.21245526]
[1744660962059,11.0,130.7,130.67,26.21245526]
[1744660962372,26.21245526,130.69,130.64,26.21245526]
[1744660962670,26.21245526,130.68,130.64,26.21245526]
[1744660962877,26.21245526,130.69,130.65,7.654]
[1744660963370,37.21245526,130.7,130.65,33.86645526]
[1744660964370,26.21245526,130.69,130.65,33.86645526]
[1744660964541,26.21245526,130.69,130.65,7.654]
[1744660964739,26.21245526,130.69,130.65,33.86645526]
[1744660965167,44.86355526,130.7,130.65,33.86645526]
[1744660966465,26.21245526,130.69,130.65,33.86645526]
[1744660966655,26.21245526,130.69,130.64,26.21245526]
[1744660967140,44.86355526,130.7,130.65,26.21245526]
[1744660967671,44.86355526,130.7,130.65,33.86605526]
[1744660968973,37.21245526,130.7,130.65,33.86605526]
[1744660969172,27.39030261,130.7,130.65,24.04390261]
[1744660970378,11.0,130.7,130.65,24.04390261]
[1744660970670,27.39030261,130.7,130.65,24.04390261]
[1744660970981,11.0,130.7,130.68,13.784]
[1744660971145,11.0,130.7,130.68,6.1318]
[1744660973669,11.0,130.7,130.68,30.17420261]
[1744660973870,97.19030261,130.74,130.69,16.39030261]
[1744660974071,35.03870261,130.75,130.7,16.39030261]
[1744660974662,11.0,130.75,130.71,16.39030261]
[1744660974862,11.0,130.75,130.72,16.39030261]
[1744660975059,11.0,130.75,130.72,24.04000261]
[1744660975673,11.0,130.75,130.72,16.39030261]
[1744660975874,11.0,130.75,130.71,24.04050261]
[1744660977385,11.0,130.75,130.72,16.39030261]
[1744660977681,35.09990261,130.78,130.73,16.39030261]
[1744660977883,27.45330261,130.78,130.74,16.39030261]
[1744660978071,11.063,130.78,130.75,16.39030261]
[1744660978580,18.7096,130.78,130.74,16.39030261]
[1744660979459,18.7096,130.78,130.73,7.6493]
[1744660979753,18.7096,130.78,130.74,16.39030261]
[1744660980594,18.7096,130.78,130.73,7.6493]
[1744660980801,18.7096,130.78,130.74,16.39030261]
[1744660981160,18.7096,130.78,130.72,25.69870261]
[1744660981161,16.39030261,130.77,130.72,25.69870261]
[1744660981462,16.39030261,130.76,130.72,1.6588]
[1744660981663,16.39030261,130.76,130.72,18.04910261]
[1744660981964,16.39030261,130.77,130.72,25.69890261]
[1744660982796,24.03780261,130.77,130.72,25.69890261]
[1744660983284,7.6475,130.77,130.73,16.39030261]
[1744660983465,16.39030261,130.76,130.72,18.04910261]
[1744660983780,11.063,130.78,130.74,16.39030261]
[1744660984382,11.063,130.78,130.75,16.39030261]
[1744660984578,0.063,130.78,130.75,16.39030261]
[1744660984884,0.063,130.78,130.75,24.03810261]
[1744660985668,0.063,130.78,130.73,6.5311]
[1744660985669,16.39030261,130.76,130.73,6.5311]
[1744660985871,27.39030261,130.76,130.73,6.5311]
[1744660986470,11.0,130.76,130.73,22.92140261]
[1744660987574,11.0,130.76,130.74,16.39030261]
[1744660987783,0.063,130.78,130.75,16.39030261]
[1744660988287,0.063,130.78,130.76,16.39030261]
[1744660988870,0.063,130.78,130.77,16.39030261]
[1744660989792,0.063,130.78,130.73,6.5311]
[1744660989969,0.063,130.78,130.75,16.39030261]
[1744660990169,0.063,130.78,130.76,16.39030261]
[1744660990390,0.063,130.78,130.77,16.39030261]
[1744660991189,0.063,130.78,130.77,24.03730261]
[1744660998198,0.063,130.78,130.77,7.647]
[1744660998499,0.063,130.78,130.77,24.03730261]
[1744660999506,0.063,130.78,130.77,44.82539775]
[1744661001975,0.063,130.78,130.77,25.74926418]
[1744661002797,0.063,130.78,130.77,17.96010261]
[1744661003898,0.063,130.78,130.77,25.74926418]
[1744661005995,0.063,130.78,130.77,25.60710261]
[1744661006199,0.063,130.78,130.77,44.82539775]
[1744661006590,0.063,130.82,130.8,0.14216157]
[1744661006791,0.063,130.82,130.81,16.53246418]
[1744661007997,0.063,130.82,130.81,24.17706418]
[1744661010975,0.063,130.82,130.81,43.25319775]
[1744661011176,0.0001,130.82,130.81,43.25319775]
[1744661011405,0.0001,130.82,130.81,44.89469775]
[1744661011600,0.063,130.84,130.83,45.07613357]
[1744661011788,0.063,130.86,130.85,0.14216157]
[1744661012100,0.063,130.86,130.85,16.53246418]
[1744661012509,0.063,130.86,130.84,6.4597]
[1744661012693,0.063,130.86,130.85,16.39030261]
[1744661021928,0.063,130.86,130.85,24.17476418]
[1744661022924,0.063,130.86,130.85,43.25089775]
[1744661023113,0.063,130.86,130.85,37.31128788]
[1744661023325,0.063,130.86,130.85,79.11405884]
[1744661025123,0.063,130.92,130.89,26.0]
[1744661025324,0.063,130.92,130.91,16.46201489]
[1744661025496,0.063,130.92,130.91,32.78186821]
[1744661025702,0.063,130.92,130.91,51.85800178]
[1744661026002,0.063,130.92,130.91,43.17694846]
[1744661028016,0.063,130.92,130.91,59.49680178]
[1744661028506,0.063,130.92,130.91,43.17694846]
[1744661029838,0.063,130.92,130.91,59.49680178]
[1744661031412,0.063,130.92,130.91,43.17694846]
[1744661034315,0.063,130.92,130.91,24.10081489]
[1744661038052,0.063,130.92,130.91,16.31985332]
[1744661038933,0.063,130.92,130.89,16.31985332]
[1744661040439,0.063,130.92,130.9,16.31985332]
[1744661040746,0.063,130.92,130.88,7.6405]
[1744661040916,0.063,130.92,130.9,16.31985332]
[1744661041540,0.063,130.92,130.91,16.31985332]
[1744661043233,0.063,130.92,130.91,23.95865332]
[1744661044448,0.063,130.92,130.91,24.10081489]
[1744661045146,0.063,130.92,130.91,18.2263954]
[1744661048154,0.063,130.92,130.91,10.44543383]
[1744661049648,0.063,130.92,130.9,10.44543383]
[1744661053453,0.063,130.92,130.91,10.44543383]
[1744661055552,0.063,130.92,130.91,18.08423383]
[1744661058240,0.063,130.92,130.91,18.2263954]
[1744661060859,0.063,130.92,130.91,18.08423383]
[1744661061154,0.063,130.92,130.88,7.6405]
[1744661061539,10.44543383,130.91,130.85,0.14216157]
[1744661061860,10.44543383,130.87,130.83,10.44543383]
[1744661062370,10.44543383,130.87,130.8,10.44543383]
[1744661062371,10.44543383,130.84,130.8,10.44543383]
[1744661062545,10.44543383,130.83,130.78,0.03]
[1744661062750,10.44543383,130.83,130.79,10.44543383]
[1744661063140,16.35566153,130.84,130.79,16.35566153]
[1744661063748,23.99896153,130.84,130.79,16.35566153]
[1744661064645,23.99896153,130.84,130.82,0.03]
[1744661065861,42.35566153,130.83,130.82,0.03]
[1744661067963,49.99916153,130.83,130.82,0.03]
[1744661077754,49.99916153,130.83,130.78,0.03]
[1744661077755,45.07613357,130.79,130.78,0.03]
[1744661078080,0.14216157,130.78,130.76,0.03]
[1744661078374,35.4317951,130.77,130.76,0.03]
[1744661079065,16.35566153,130.77,130.76,0.03]
[1744661079879,24.00266153,130.77,130.76,0.03]
[1744661080756,7.6466,130.78,130.76,0.03]
[1744661080961,24.00226153,130.78,130.76,0.03]
[1744661081276,16.35566153,130.77,130.76,0.03]
[1744661081876,24.00226153,130.78,130.76,0.03]
[1744661082176,141.78176153,130.79,130.76,0.03]
[1744661082359,115.78176153,130.79,130.76,0.03]
[1744661082973,108.13566153,130.79,130.76,0.03]
[1744661083156,91.78,130.79,130.76,0.03]
[1744661084276,91.78,130.79,130.76,16.38566153]
[1744661084478,99.4259,130.79,130.76,0.03]
[1744661084655,18.6259,130.79,130.76,0.03]
[1744661087671,10.98,130.79,130.76,0.03]
[1744661088179,27.33566153,130.79,130.76,0.03]
[1744661088385,34.98156153,130.79,130.76,0.03]
[1744661088969,16.35566153,130.78,130.76,0.03]
[1744661090078,24.00246153,130.78,130.76,0.03]
[1744661090378,16.35566153,130.77,130.76,0.03]
[1744661091576,43.0787951,130.77,130.76,0.03]
[1744661091762,43.22095667,130.77,130.76,0.03]
[1744661091958,19.07613357,130.76,130.74,0.03]
[1744661092155,51.78745663,130.75,130.74,0.03]
[1744661092359,35.4317951,130.75,130.74,0.03]
[1744661092579,51.78745663,130.75,130.74,0.03]
[1744661093283,51.9296182,130.75,130.74,0.03]
[1744661093663,59.5777182,130.75,130.74,0.03]
[1744661094178,59.5777182,130.75,130.74,0.0001]
[1744661094358,59.5777182,130.75,130.71,0.03]
[1744661094563,61.4317951,130.72,130.71,0.03]
[1744661094758,42.35566153,130.72,130.71,0.03]
[1744661096388,50.00556153,130.72,130.71,0.03]
[1744661096887,16.35566153,130.72,130.71,0.03]
[1744661097093,91.78,130.74,130.71,0.03]
[1744661097291,108.13566153,130.74,130.71,0.03]
[1744661098395,115.78466153,130.74,130.71,0.03]
[1744661100502,24.00506153,130.73,130.71,0.03]
[1744661101115,16.35566153,130.72,130.71,0.03]
[1744661102588,24.00556153,130.72,130.71,0.03]
[1744661103399,50.00556153,130.72,130.71,0.03]
[1744661103609,69.22385667,130.72,130.71,0.03]
[1744661103890,43.22385667,130.72,130.71,0.03]
[1744661105281,44.79181043,130.69,130.68,0.03]
[1744661105494,72.4117951,130.69,130.68,0.03]
[1744661106302,53.33566153,130.69,130.68,0.03]
[1744661106497,36.98,130.69,130.68,0.03]
[1744661107075,16.35566153,130.71,130.68,0.03]
[1744661107486,24.00626153,130.71,130.68,0.03]
[1744661107695,16.35566153,130.71,130.68,0.03]
[1744661107902,24.00616153,130.71,130.68,0.03]
[1744661108102,24.00576153,130.72,130.68,0.03]
[1744661108303,16.35566153,130.72,130.68,17.95956153]
[1744661108683,24.00566153,130.72,130.68,17.95956153]
[1744661108883,16.35566153,130.72,130.68,17.95956153]
[1744661109098,16.35566153,130.72,130.68,25.61156153]
[1744661110109,24.00556153,130.72,130.68,25.61156153]
[1744661110283,24.00556153,130.72,130.68,9.2559]
[1744661111600,18.6295,130.73,130.68,25.61156153]
[1744661111803,18.6295,130.73,130.69,16.35566153]
[1744661112008,34.98516153,130.73,130.68,25.61156153]
[1744661113303,16.35566153,130.71,130.68,1.6039]
[1744661113801,34.98516153,130.73,130.68,25.61166153]
[1744661114106,27.33566153,130.73,130.69,16.35566153]
[1744661115004,34.98506153,130.73,130.69,24.00726153]
[1744661115389,34.98506153,130.73,130.68,25.61146153]
[1744661115591,16.35566153,130.71,130.68,1.6039]
[1744661115789,16.35566153,130.72,130.68,1.6039]
[1744661117211,24.00616153,130.71,130.68,1.6039]
[1744661118614,16.35566153,130.71,130.68,1.6039]
[1744661118800,24.00566153,130.72,130.68,1.6039]
[1744661119610,16.35566153,130.71,130.68,1.6039]
[1744661119801,16.35566153,130.71,130.68,0.03]
[1744661120123,51.9296182,130.69,130.68,0.03]
[1744661120292,26.0,130.66,130.65,0.03]
[1744661120490,53.33566153,130.66,130.65,0.03]
[1744661121215,80.0651951,130.66,130.65,0.03]
[1744661123102,60.98906153,130.66,130.65,0.03]
[1744661125419,80.0651951,130.66,130.65,0.03]
[1744661126536,60.98906153,130.66,130.65,0.03]
[1744661127120,80.0651951,130.66,130.65,0.03]
[1744661127721,0.14216157,130.65,130.63,0.03]
[1744661128024,35.4317951,130.64,130.63,0.03]
[1744661129400,43.0863951,130.64,130.63,0.03]
[1744661130319,26.0,130.61,130.6,0.03]
[1744661130627,53.33566153,130.61,130.6,0.03]
[1744661131427,72.4117951,130.61,130.6,0.03]
[1744661131616,80.21025667,130.61,130.6,0.03]
[1744661133635,0.14216157,130.6,130.59,0.03]
[1744661134005,0.14216157,130.6,130.55,0.18]
[1744661134006,44.79181043,130.56,130.55,0.18]
[1744661134205,88.76745663,130.56,130.55,0.18]
[1744661134419,72.4117951,130.56,130.55,0.18]
[1744661134932,88.9096182,130.56,130.55,0.18]
[1744661135336,0.14216157,130.55,130.51,0.03]
[1744661135508,50.01726153,130.52,130.51,0.03]
[1744661135713,42.35566153,130.52,130.51,0.03]
[1744661136606,7.6613,130.53,130.51,0.03]
[1744661136607,16.35566153,130.53,130.51,0.03]
[1744661136927,16.35566153,130.54,130.51,0.03]
[1744661137129,16.35566153,130.52,130.51,0.03]
[1744661137427,26.0,130.52,130.51,0.03]
[1744661138524,80.8,130.55,130.51,17.89396153]
[1744661138733,27.33566153,130.56,130.52,16.35566153]
[1744661138918,10.98,130.56,130.52,16.35566153]
[1744661139117,16.35566153,130.58,130.54,22.37016153]
[1744661139430,24.01346153,130.59,130.54,22.37016153]
[1744661139624,16.35566153,130.58,130.51,20.6936]
[1744661139830,16.35566153,130.58,130.53,16.35566153]
[1744661140130,16.35566153,130.58,130.51,20.6936]
[1744661140433,16.35566153,130.58,130.53,16.35566153]
[1744661140735,16.35566153,130.57,130.52,7.6616]
[1744661141028,16.35566153,130.57,130.52,24.01726153]
[1744661141233,16.35566153,130.55,130.52,7.6616]
[1744661141437,16.35566153,130.54,130.51,1.5383]
[1744661142430,42.35566153,130.55,130.51,9.2005]
[1744661143015,42.35566153,130.55,130.51,25.55616153]
[1744661143240,7.6575,130.59,130.53,16.35566153]
[1744661143412,16.35566153,130.58,130.51,28.3561]
[1744661143617,16.35566153,130.57,130.53,16.35566153]
[1744661144439,16.35566153,130.57,130.54,7.6604]
[1744661145436,91.78,130.6,130.54,16.35566153]
[1744661145613,26.0,130.57,130.54,16.35566153]
[1744661145814,16.35566153,130.58,130.54,16.35566153]
[1744661146014,16.35566153,130.57,130.53,24.01666153]
[1744661147440,24.01386153,130.58,130.53,24.01666153]
[1744661147633,16.35566153,130.58,130.54,16.35566153]
[1744661148742,24.01346153,130.59,130.54,24.01556153]
[1744661148916,16.35566153,130.58,130.54,24.01556153]
[1744661153550,16.35566153,130.58,130.54,7.6599]
[1744661154847,16.35566153,130.58,130.54,24.01556153]
[1744661155446,24.01376153,130.58,130.54,7.6599]
[1744661155747,16.35566153,130.57,130.53,24.01656153]
[1744661155923,24.01376153,130.58,130.54,16.35566153]
[1744661156120,24.01336153,130.59,130.55,16.35566153]
[1744661157050,24.01336153,130.59,130.54,16.35566153]
[1744661157249,18.1651332,130.59,130.54,10.5074332]
[1744661157430,10.5074332,130.58,130.54,10.5074332]
[1744661157633,10.5074332,130.56,130.52,7.6616]
[1744661157833,10.5074332,130.56,130.52,18.1690332]
[1744661158047,10.5074332,130.57,130.52,18.1690332]
[1744661158247,7.6577,130.59,130.52,18.1690332]
[1744661158447,10.5074332,130.58,130.53,10.5074332]
[1744661158751,10.5074332,130.57,130.52,18.1690332]
[1744661159664,18.1663332,130.57,130.52,10.5074332]
[1744661159835,10.5074332,130.55,130.51,9.2003]
[1744661160458,10.5074332,130.53,130.51,1.5383]
[1744661160627,36.5074332,130.52,130.51,0.03]
[1744661161227,80.8,130.54,130.51,0.03]
[1744661161441,10.5074332,130.53,130.51,0.03]
[1744661161852,18.1685332,130.53,130.51,0.03]
[1744661163146,24.09304107,130.53,130.51,0.03]
[1744661164539,16.43194107,130.53,130.51,0.03]
[1744661165053,97.23194107,130.54,130.51,0.03]
[1744661165549,18.6402,130.55,130.51,16.46194107]
[1744661165550,27.41194107,130.55,130.51,16.46194107]
[1744661165749,10.98,130.55,130.52,16.43194107]
[1744661165948,16.43194107,130.57,130.53,18.02204107]
[1744661166148,24.09074107,130.57,130.53,1.5901]
[1744661167262,16.43194107,130.56,130.53,1.5901]
[1744661167967,16.43194107,130.56,130.53,9.2511]
[1744661168146,24.09074107,130.57,130.53,9.2511]
[1744661169864,16.43194107,130.57,130.53,25.68304107]
[1744661170071,16.43194107,130.55,130.52,6.2187]
[1744661170255,88.4583,130.58,130.51,0.03]
[1744661170256,16.43194107,130.54,130.51,0.03]
[1744661170459,16.43194107,130.55,130.51,0.03]
[1744661170661,16.43194107,130.55,130.51,16.46194107]
[1744661171674,16.43194107,130.55,130.51,24.12404107]
[1744661172071,24.09214107,130.55,130.51,0.03]
[1744661172374,16.43194107,130.53,130.51,0.03]
[1744661172576,16.43194107,130.52,130.51,0.03]
[1744661172779,35.50807464,130.52,130.51,0.03]
[1744661174166,80.8,130.51,130.47,0.03]
[1744661174372,16.43194107,130.48,130.47,0.03]
[1744661174556,80.8,130.51,130.47,16.46194107]
[1744661174888,24.09354107,130.52,130.48,16.43194107]
[1744661176081,7.6616,130.52,130.48,16.43194107]
[1744661176756,24.09354107,130.52,130.48,16.43194107]
[1744661176975,7.6611,130.53,130.5,16.43194107]
[1744661177279,7.6611,130.53,130.51,16.43194107]
[1744661177857,80.8,130.55,130.52,16.43194107]
[1744661178051,80.8,130.55,130.52,18.01584107]
[1744661178277,80.8,130.55,130.52,25.67744107]
[1744661179079,88.4599,130.55,130.52,1.5839]
[1744661180381,80.8,130.55,130.52,1.5839]
[1744661180590,80.8,130.55,130.52,9.2453]
[1744661180766,80.8,130.55,130.52,25.67724107]
[1744661181075,16.43194107,130.57,130.52,25.67724107]
[1744661182280,16.43194107,130.55,130.52,1.5839]
[1744661182593,16.43194107,130.54,130.52,1.5839]
[1744661183982,24.09214107,130.55,130.52,1.5839]
[1744661184388,16.43194107,130.55,130.52,1.5839]
[1744661185759,16.43194107,130.53,130.47,6.1929]
[1744661185963,16.43194107,130.49,130.47,0.03]
[1744661186185,16.43194107,130.48,130.47,0.03]
[1744661186567,16.43194107,130.49,130.47,0.03]
[1744661187586,16.43194107,130.48,130.47,0.03]
[1744661189073,24.09594107,130.48,130.47,0.03]
[1744661189263,42.8877515,130.48,130.47,0.03]
[1744661189469,42.43194107,130.46,130.45,0.03]
[1744661191075,50.09704107,130.46,130.45,0.03]
[1744661191294,68.8888515,130.46,130.45,0.03]
[1744661192887,50.09704107,130.46,130.45,0.03]
[1744661195091,24.09704107,130.46,130.45,0.03]
[1744661196092,80.8,130.47,130.45,0.03]
[1744661196093,104.89674107,130.47,130.45,0.03]
[1744661196302,80.8,130.51,130.46,16.43194107]
[1744661196478,88.4625,130.51,130.47,16.43194107]
[1744661196795,88.4625,130.51,130.48,16.43194107]
[1744661197289,80.8,130.51,130.48,16.43194107]